[Event "*** SCC Grand Prix: Titled Tuesday Blitz"]
[Site "Chess.com"]
[Date "2020.07.21"]
[Round "5"]
[White "boasovietica"]
[Black "vpsetter"]
[Result "0-1"]
[WhiteElo "2414"]
[BlackElo "2602"]
[TimeControl "180+1"]
[EndTime "10:57:20 PDT"]
[Termination "vpsetter won on time"]

1. e4 {[%clk 0:03:00.9]} 1... c5 {[%clk 0:02:58.1]} 2. Nf3 {[%clk 0:03:00.6]}
2... Nc6 {[%clk 0:02:56.8]} 3. Nc3 {[%clk 0:03:00.4]} 3... g6 {[%clk 0:02:55.3]}
4. d4 {[%clk 0:02:59.8]} 4... cxd4 {[%clk 0:02:55.5]} 5. Nxd4 {[%clk 0:03:00.7]}
5... Bg7 {[%clk 0:02:56.3]} 6. Nb3 {[%clk 0:03:00.8]} 6... Nf6 {[%clk
0:02:54.6]} 7. Be2 {[%clk 0:03:00.2]} 7... O-O {[%clk 0:02:54]} 8. O-O {[%clk
0:03:00.2]} 8... d6 {[%clk 0:02:52.3]} 9. Bg5 {[%clk 0:02:59.9]} 9... a6 {[%clk
0:02:36.8]} 10. Kh1 {[%clk 0:02:57.2]} 10... b5 {[%clk 0:02:32.6]} 11. a3 {[%clk
0:02:56.4]} 11... Be6 {[%clk 0:02:13.1]} 12. f4 {[%clk 0:02:54.4]} 12... Bxb3
{[%clk 0:02:10.9]} 13. cxb3 {[%clk 0:02:53.2]} 13... Nd7 {[%clk 0:02:10]} 14.
Rc1 {[%clk 0:02:48.2]} 14... Nc5 {[%clk 0:01:38.4]} 15. Nd5 {[%clk 0:02:09.2]}
15... Bxb2 {[%clk 0:01:30.1]} 16. Rc2 {[%clk 0:02:09.1]} 16... Bxa3 {[%clk
0:01:28.1]} 17. Qa1 {[%clk 0:01:45.8]} 17... b4 {[%clk 0:01:08]} 18. Bh6 {[%clk
0:01:37.6]} 18... f6 {[%clk 0:01:05.7]} 19. Bxf8 {[%clk 0:01:21.9]} 19... Qxf8
{[%clk 0:01:04.6]} 20. Bc4 {[%clk 0:01:20.9]} 20... Kg7 {[%clk 0:01:01.5]} 21.
Nc7 {[%clk 0:01:01.6]} 21... Ra7 {[%clk 0:00:32.6]} 22. Ne6+ {[%clk 0:00:52.9]}
22... Nxe6 {[%clk 0:00:32.4]} 23. Bxe6 {[%clk 0:00:53.8]} 23... Nd8 {[%clk
0:00:32.8]} 24. Rc8 {[%clk 0:00:44.7]} 24... Nxe6 {[%clk 0:00:32.3]} 25. Rxf8
{[%clk 0:00:42.4]} 25... Kxf8 {[%clk 0:00:32.5]} 26. f5 {[%clk 0:00:35.4]} 26...
Nc5 {[%clk 0:00:29]} 27. fxg6 {[%clk 0:00:33.7]} 27... hxg6 {[%clk 0:00:29.2]}
28. Qd4 {[%clk 0:00:28.7]} 28... Rc7 {[%clk 0:00:11.1]} 29. Qc4 {[%clk
0:00:22.2]} 29... Kg7 {[%clk 0:00:07.4]} 30. h4 {[%clk 0:00:20.4]} 30... a5
{[%clk 0:00:06]} 31. h5 {[%clk 0:00:18.6]} 31... Bb2 {[%clk 0:00:06.1]} 32. hxg6
{[%clk 0:00:16]} 32... e6 {[%clk 0:00:06.2]} 33. e5 {[%clk 0:00:14.7]} 33...
Bxe5 {[%clk 0:00:06.1]} 34. Rf3 {[%clk 0:00:09.5]} 34... Rc8 {[%clk 0:00:03.6]}
35. Rh3 {[%clk 0:00:08.7]} 35... f5 {[%clk 0:00:02.4]} 36. Qh4 {[%clk
0:00:07.8]} 36... Kxg6 {[%clk 0:00:02.2]} 37. Qh5+ {[%clk 0:00:06.2]} 37... Kf6
{[%clk 0:00:02.7]} 38. Qh6+ {[%clk 0:00:05.6]} 38... Kf7 {[%clk 0:00:02.4]} 39.
Qh7+ {[%clk 0:00:05.8]} 39... Bg7 {[%clk 0:00:02.8]} 40. Rg3 {[%clk 0:00:06.2]}
40... Rg8 {[%clk 0:00:03]} 41. Qg6+ {[%clk 0:00:06.4]} 41... Ke7 {[%clk
0:00:03.4]} 42. Qh7 {[%clk 0:00:06.2]} 42... Kf7 {[%clk 0:00:03.8]} 43. Kg1
{[%clk 0:00:06.2]} 43... Ne4 {[%clk 0:00:04.1]} 44. Qg6+ {[%clk 0:00:05.8]}
44... Ke7 {[%clk 0:00:04.3]} 45. Qh7 {[%clk 0:00:04.6]} 45... Nxg3 {[%clk
0:00:04.7]} 46. Qxg8 {[%clk 0:00:04.5]} 46... Bd4+ {[%clk 0:00:05.1]} 47. Kh2
{[%clk 0:00:03.7]} 47... Be5 {[%clk 0:00:04.9]} 48. Kh3 {[%clk 0:00:03.6]} 48...
Ne4 {[%clk 0:00:05]} 49. Qc8 {[%clk 0:00:03.1]} 49... Ng5+ {[%clk 0:00:04.7]}
50. Kh4 {[%clk 0:00:03.5]} 50... Ne4 {[%clk 0:00:04.3]} 51. Qb7+ {[%clk
0:00:03.1]} 51... Kf6 {[%clk 0:00:04.3]} 52. Qa8 {[%clk 0:00:03.3]} 52... Bc3
{[%clk 0:00:04.3]} 53. Qxa5 {[%clk 0:00:02.3]} 53... Be1+ {[%clk 0:00:04.3]} 54.
Kh5 {[%clk 0:00:02.8]} 54... Ng3+ {[%clk 0:00:04.3]} 55. Kh6 {[%clk 0:00:03]}
55... Bd2+ {[%clk 0:00:04.6]} 56. Kh7 {[%clk 0:00:03]} 56... Ne4 {[%clk
0:00:05.1]} 57. Qd8+ {[%clk 0:00:02.9]} 57... Ke5 {[%clk 0:00:05.1]} 58. Qh8+
{[%clk 0:00:02.2]} 58... Kf4 {[%clk 0:00:05.2]} 59. Qd4 {[%clk 0:00:02.5]} 59...
Bc3 {[%clk 0:00:05.2]} 60. Qd3 {[%clk 0:00:02.2]} 60... d5 {[%clk 0:00:04.7]}
61. Qf3+ {[%clk 0:00:01.6]} 61... Ke5 {[%clk 0:00:05.1]} 62. g3 {[%clk
0:00:01.7]} 62... Ng5+ {[%clk 0:00:05.3]} 0-1

[Event "*** SCC Grand Prix: Titled Tuesday Blitz"]
[Site "Chess.com"]
[Date "2020.07.21"]
[Round "5"]
[White "jb2mix"]
[Black "GM_dmitrij"]
[Result "0-1"]
[WhiteElo "2674"]
[BlackElo "2933"]
[TimeControl "180+1"]
[EndTime "10:57:28 PDT"]
[Termination "GM_dmitrij won by checkmate"]

1. e4 {[%clk 0:02:59.8]} 1... c5 {[%clk 0:02:59.9]} 2. c3 {[%clk 0:02:59.8]}
2... d5 {[%clk 0:02:57.7]} 3. exd5 {[%clk 0:03:00.7]} 3... Qxd5 {[%clk
0:02:58.4]} 4. d4 {[%clk 0:03:01.3]} 4... g6 {[%clk 0:02:57.9]} 5. Nf3 {[%clk
0:03:01.7]} 5... Bg7 {[%clk 0:02:57.5]} 6. Na3 {[%clk 0:03:02.3]} 6... cxd4
{[%clk 0:02:51.5]} 7. Nb5 {[%clk 0:03:01.9]} 7... Na6 {[%clk 0:02:50.6]} 8. Be3
{[%clk 0:03:00.4]} 8... Nf6 {[%clk 0:02:47.4]} 9. Qxd4 {[%clk 0:02:59.8]} 9...
O-O {[%clk 0:02:40.1]} 10. Bc4 {[%clk 0:02:42.2]} 10... Qh5 {[%clk 0:02:30.4]}
11. Qh4 {[%clk 0:02:25.8]} 11... Qxh4 {[%clk 0:02:09.6]} 12. Nxh4 {[%clk
0:02:26.7]} 12... Bd7 {[%clk 0:02:10.5]} 13. Nxa7 {[%clk 0:02:18.3]} 13... Ng4
{[%clk 0:02:10.6]} 14. Bb6 {[%clk 0:02:18.1]} 14... Ne5 {[%clk 0:02:05.6]} 15.
Be2 {[%clk 0:02:18.4]} 15... Be6 {[%clk 0:01:51.2]} 16. Nb5 {[%clk 0:02:14.2]}
16... Nc4 {[%clk 0:01:37.8]} 17. Bd4 {[%clk 0:02:14]} 17... Nxb2 {[%clk
0:01:35.2]} 18. Bxg7 {[%clk 0:02:14]} 18... Kxg7 {[%clk 0:01:35.7]} 19. O-O
{[%clk 0:02:12]} 19... Na4 {[%clk 0:01:34.4]} 20. Nf3 {[%clk 0:02:03.8]} 20...
N6c5 {[%clk 0:01:33.8]} 21. Nfd4 {[%clk 0:02:03.5]} 21... Bd7 {[%clk 0:01:33.2]}
22. Bf3 {[%clk 0:02:01.8]} 22... e5 {[%clk 0:01:31.7]} 23. Nd6 {[%clk
0:01:42.2]} 23... exd4 {[%clk 0:01:31.3]} 24. cxd4 {[%clk 0:01:43.1]} 24... Ne6
{[%clk 0:01:31.2]} 25. Bxb7 {[%clk 0:01:40.3]} 25... Ra7 {[%clk 0:01:30.9]} 26.
d5 {[%clk 0:01:40.6]} 26... Nd4 {[%clk 0:01:22.2]} 27. Rfd1 {[%clk 0:01:28.8]}
27... Nc3 {[%clk 0:01:21.1]} 28. Rd3 {[%clk 0:01:28]} 28... Ncb5 {[%clk
0:01:09.7]} 29. Bc6 {[%clk 0:01:20.4]} 29... Nxd6 {[%clk 0:00:37.9]} 30. Rxd4
{[%clk 0:01:20.9]} 30... Rc8 {[%clk 0:00:38.5]} 31. Bxd7 {[%clk 0:01:03.6]}
31... Rxd7 {[%clk 0:00:39.4]} 32. a4 {[%clk 0:01:04.5]} 32... Ra7 {[%clk
0:00:39.4]} 33. Rb4 {[%clk 0:01:03]} 33... Rc5 {[%clk 0:00:38.6]} 34. Rd1 {[%clk
0:01:02.6]} 34... Rca5 {[%clk 0:00:31.1]} 35. Rb6 {[%clk 0:01:01.7]} 35... R5a6
{[%clk 0:00:28]} 36. Rc6 {[%clk 0:00:59.2]} 36... Kf6 {[%clk 0:00:22.1]} 37. f4
{[%clk 0:00:58.8]} 37... Ke7 {[%clk 0:00:22.1]} 38. Rxa6 {[%clk 0:00:46.6]}
38... Rxa6 {[%clk 0:00:21.8]} 39. Rd4 {[%clk 0:00:47.5]} 39... Ra5 {[%clk
0:00:20.3]} 40. Kf2 {[%clk 0:00:47.7]} 40... Nf5 {[%clk 0:00:20.5]} 41. Rb4
{[%clk 0:00:47.4]} 41... Rxd5 {[%clk 0:00:20.7]} 42. g4 {[%clk 0:00:46.9]} 42...
Nd6 {[%clk 0:00:19.5]} 43. Rb2 {[%clk 0:00:38.8]} 43... Rd4 {[%clk 0:00:19.1]}
44. Re2+ {[%clk 0:00:34.9]} 44... Kd7 {[%clk 0:00:18.5]} 45. Ra2 {[%clk
0:00:34.3]} 45... Rxf4+ {[%clk 0:00:18.4]} 46. Kg3 {[%clk 0:00:34.3]} 46... Rb4
{[%clk 0:00:19.3]} 47. a5 {[%clk 0:00:34.5]} 47... Rb7 {[%clk 0:00:19.4]} 48.
Kf4 {[%clk 0:00:33.3]} 48... f6 {[%clk 0:00:16]} 49. a6 {[%clk 0:00:33.7]} 49...
Ra7 {[%clk 0:00:15.7]} 50. g5 {[%clk 0:00:34.6]} 50... f5 {[%clk 0:00:15.9]} 51.
Ke5 {[%clk 0:00:34.8]} 51... Ne8 {[%clk 0:00:15.4]} 52. Rd2+ {[%clk 0:00:24.7]}
52... Ke7 {[%clk 0:00:15.6]} 53. Rb2 {[%clk 0:00:25.3]} 53... Rxa6 {[%clk
0:00:12.4]} 54. Rb7+ {[%clk 0:00:25.8]} 54... Kf8 {[%clk 0:00:12.7]} 55. Rxh7
{[%clk 0:00:26.7]} 55... Ng7 {[%clk 0:00:13.1]} 56. Rh3 {[%clk 0:00:25.2]} 56...
Re6+ {[%clk 0:00:12.4]} 57. Kf4 {[%clk 0:00:24.2]} 57... Re4+ {[%clk 0:00:13.3]}
58. Kf3 {[%clk 0:00:24.7]} 58... Ne6 {[%clk 0:00:13.8]} 59. Rg3 {[%clk
0:00:22.2]} 59... Rb4 {[%clk 0:00:11.8]} 60. Rg1 {[%clk 0:00:21.7]} 60... Rh4
{[%clk 0:00:11.9]} 61. Rg2 {[%clk 0:00:20.8]} 61... Kf7 {[%clk 0:00:11.1]} 62.
Ke3 {[%clk 0:00:17.4]} 62... Rh5 {[%clk 0:00:11.3]} 63. Ra2 {[%clk 0:00:14.3]}
63... Rxg5 {[%clk 0:00:11.3]} 64. Kf3 {[%clk 0:00:13.5]} 64... Kf6 {[%clk
0:00:11.3]} 65. Ra4 {[%clk 0:00:10.1]} 65... Rh5 {[%clk 0:00:12.2]} 66. h4
{[%clk 0:00:10.1]} 66... Rh7 {[%clk 0:00:12.2]} 67. Kg3 {[%clk 0:00:10]} 67...
Rd7 {[%clk 0:00:12.4]} 68. Ra3 {[%clk 0:00:10.5]} 68... Rd4 {[%clk 0:00:12.4]}
69. Re3 {[%clk 0:00:10.5]} 69... Rg4+ {[%clk 0:00:12.7]} 70. Kh3 {[%clk
0:00:10.4]} 70... Nf4+ {[%clk 0:00:13.1]} 71. Kh2 {[%clk 0:00:10.9]} 71... Rxh4+
{[%clk 0:00:14]} 72. Kg1 {[%clk 0:00:10.8]} 72... Rg4+ {[%clk 0:00:14.9]} 73.
Kf2 {[%clk 0:00:10.8]} 73... Kg5 {[%clk 0:00:14.8]} 74. Re7 {[%clk 0:00:10.2]}
74... Nh5 {[%clk 0:00:13.3]} 75. Re1 {[%clk 0:00:07.5]} 75... Nf6 {[%clk
0:00:13.3]} 76. Rh1 {[%clk 0:00:07.6]} 76... Ne4+ {[%clk 0:00:14.2]} 77. Kf3
{[%clk 0:00:07.9]} 77... Rg3+ {[%clk 0:00:14.4]} 78. Ke2 {[%clk 0:00:08.4]}
78... Kf4 {[%clk 0:00:14.4]} 79. Rf1+ {[%clk 0:00:08.7]} 79... Ke5 {[%clk
0:00:14.8]} 80. Rb1 {[%clk 0:00:09.3]} 80... g5 {[%clk 0:00:15.3]} 81. Rb5+
{[%clk 0:00:09.5]} 81... Kf4 {[%clk 0:00:15.8]} 82. Rb4 {[%clk 0:00:10.4]} 82...
Rg2+ {[%clk 0:00:15.8]} 83. Kf1 {[%clk 0:00:10.7]} 83... Ra2 {[%clk 0:00:16.7]}
84. Rb1 {[%clk 0:00:09.5]} 84... Nd2+ {[%clk 0:00:16.3]} 85. Kg2 {[%clk
0:00:09.1]} 85... Nxb1+ {[%clk 0:00:17.2]} 86. Kh3 {[%clk 0:00:09.9]} 86... g4+
{[%clk 0:00:17.1]} 87. Kh4 {[%clk 0:00:10.6]} 87... Rh2# {[%clk 0:00:17.8]} 0-1

[Event "*** SCC Grand Prix: Titled Tuesday Blitz"]
[Site "Chess.com"]
[Date "2020.07.21"]
[Round "5"]
[White "Azatic"]
[Black "sasko1234"]
[Result "1/2-1/2"]
[WhiteElo "2542"]
[BlackElo "2388"]
[TimeControl "180+1"]
[EndTime "10:57:37 PDT"]
[Termination "Game drawn - insufficient material"]

1. e4 {[%clk 0:03:00.9]} 1... d6 {[%clk 0:02:57.5]} 2. d4 {[%clk 0:03:00.5]}
2... Nf6 {[%clk 0:02:57.7]} 3. Nc3 {[%clk 0:03:00.5]} 3... c6 {[%clk 0:02:53.8]}
4. f4 {[%clk 0:02:52.8]} 4... Qa5 {[%clk 0:02:52]} 5. Qd2 {[%clk 0:02:39]} 5...
e5 {[%clk 0:02:46.3]} 6. dxe5 {[%clk 0:02:15.1]} 6... dxe5 {[%clk 0:02:45.6]} 7.
fxe5 {[%clk 0:02:09.5]} 7... Ng4 {[%clk 0:02:36.3]} 8. Nf3 {[%clk 0:02:05]} 8...
Nxe5 {[%clk 0:02:21.4]} 9. Qg5 {[%clk 0:01:45.6]} 9... Nxf3+ {[%clk 0:01:56.1]}
10. gxf3 {[%clk 0:01:46.5]} 10... Qxg5 {[%clk 0:01:55.3]} 11. Bxg5 {[%clk
0:01:47.4]} 11... Be7 {[%clk 0:01:55.6]} 12. Bxe7 {[%clk 0:01:36.8]} 12... Kxe7
{[%clk 0:01:53.7]} 13. Rg1 {[%clk 0:01:37.5]} 13... g6 {[%clk 0:01:52.3]} 14.
Rd1 {[%clk 0:01:33]} 14... Be6 {[%clk 0:01:50.3]} 15. Kf2 {[%clk 0:01:29.2]}
15... Nd7 {[%clk 0:01:50.2]} 16. Ke3 {[%clk 0:01:28.3]} 16... Rad8 {[%clk
0:01:48.2]} 17. Be2 {[%clk 0:01:21.4]} 17... Nc5 {[%clk 0:01:41.9]} 18. Rg5
{[%clk 0:01:14.8]} 18... Rxd1 {[%clk 0:01:36.5]} 19. Bxd1 {[%clk 0:01:15.7]}
19... Nd7 {[%clk 0:01:28.9]} 20. h4 {[%clk 0:01:12.8]} 20... Rd8 {[%clk
0:01:27.9]} 21. Be2 {[%clk 0:01:10.2]} 21... f6 {[%clk 0:01:13.7]} 22. Rg1
{[%clk 0:01:00.9]} 22... Bf7 {[%clk 0:01:07]} 23. f4 {[%clk 0:00:48.6]} 23...
Nc5 {[%clk 0:01:04.4]} 24. Rh1 {[%clk 0:00:18.6]} 24... Ne6 {[%clk 0:01:02.4]}
25. h5 {[%clk 0:00:17.8]} 25... g5 {[%clk 0:00:51.9]} 26. fxg5 {[%clk
0:00:16.7]} 26... Nxg5 {[%clk 0:00:49.5]} 27. h6 {[%clk 0:00:15.7]} 27... Bg6
{[%clk 0:00:43.2]} 28. Rf1 {[%clk 0:00:15.6]} 28... b5 {[%clk 0:00:39.5]} 29.
Bd3 {[%clk 0:00:14]} 29... a6 {[%clk 0:00:37.3]} 30. Ne2 {[%clk 0:00:13.7]}
30... Nf7 {[%clk 0:00:36.3]} 31. Nd4 {[%clk 0:00:11.3]} 31... Rc8 {[%clk
0:00:30.8]} 32. Rh1 {[%clk 0:00:07.8]} 32... c5 {[%clk 0:00:29.1]} 33. Nf3
{[%clk 0:00:04.7]} 33... c4 {[%clk 0:00:20.6]} 34. Be2 {[%clk 0:00:04.8]} 34...
Ne5 {[%clk 0:00:18.9]} 35. Nxe5 {[%clk 0:00:04.9]} 35... fxe5 {[%clk 0:00:18.6]}
36. Bg4 {[%clk 0:00:05.2]} 36... Rf8 {[%clk 0:00:18.1]} 37. b3 {[%clk
0:00:05.4]} 37... Rf4 {[%clk 0:00:17.8]} 38. Bf3 {[%clk 0:00:05.6]} 38... cxb3
{[%clk 0:00:16]} 39. axb3 {[%clk 0:00:06.5]} 39... Rf6 {[%clk 0:00:16.3]} 40.
Ra1 {[%clk 0:00:06.6]} 40... Rc6 {[%clk 0:00:15.1]} 41. Kd2 {[%clk 0:00:05.7]}
41... Bf7 {[%clk 0:00:15.1]} 42. Rh1 {[%clk 0:00:04.1]} 42... Bg6 {[%clk
0:00:14.6]} 43. Bg2 {[%clk 0:00:04.2]} 43... Bf7 {[%clk 0:00:14.1]} 44. Bf3
{[%clk 0:00:04.8]} 44... Rf6 {[%clk 0:00:14.3]} 45. Ke3 {[%clk 0:00:05]} 45...
Rg6 {[%clk 0:00:13.8]} 46. Rh2 {[%clk 0:00:05.4]} 46... Rf6 {[%clk 0:00:13.8]}
47. b4 {[%clk 0:00:05.9]} 47... Bc4 {[%clk 0:00:13.2]} 48. c3 {[%clk 0:00:06.3]}
48... Bf7 {[%clk 0:00:12.8]} 49. Bg4 {[%clk 0:00:06.7]} 49... Rc6 {[%clk
0:00:10.4]} 50. Kd2 {[%clk 0:00:04.7]} 50... Bg6 {[%clk 0:00:10.4]} 51. Kd3
{[%clk 0:00:02.9]} 51... Rd6+ {[%clk 0:00:06.7]} 52. Ke3 {[%clk 0:00:02.9]}
52... Rc6 {[%clk 0:00:06.9]} 53. Bf5 {[%clk 0:00:03.5]} 53... Bxf5 {[%clk
0:00:05.1]} 54. exf5 {[%clk 0:00:04.4]} 54... Rxc3+ {[%clk 0:00:05.1]} 55. Ke4
{[%clk 0:00:05]} 55... Kf6 {[%clk 0:00:05.1]} 56. Rd2 {[%clk 0:00:05.6]} 56...
Rc4+ {[%clk 0:00:05.3]} 57. Kf3 {[%clk 0:00:06.3]} 57... Rc7 {[%clk 0:00:03.8]}
58. Rd6+ {[%clk 0:00:06.6]} 58... Kxf5 {[%clk 0:00:04]} 59. Rxa6 {[%clk
0:00:07.5]} 59... Rc3+ {[%clk 0:00:04.1]} 60. Ke2 {[%clk 0:00:07.6]} 60... Rc4
{[%clk 0:00:04.2]} 61. Ra7 {[%clk 0:00:07.8]} 61... Rxb4 {[%clk 0:00:04.7]} 62.
Rxh7 {[%clk 0:00:08]} 62... Rh4 {[%clk 0:00:05.3]} 63. Ke3 {[%clk 0:00:07.5]}
63... Rh3+ {[%clk 0:00:04.1]} 64. Ke2 {[%clk 0:00:07.6]} 64... b4 {[%clk
0:00:04.6]} 65. Rb7 {[%clk 0:00:08.1]} 65... b3 {[%clk 0:00:04.3]} 66. h7 {[%clk
0:00:08.7]} 66... Ke4 {[%clk 0:00:04.3]} 67. Rb4+ {[%clk 0:00:07.9]} 67... Kf5
{[%clk 0:00:04.3]} 68. Rb5 {[%clk 0:00:08.3]} 68... Ke4 {[%clk 0:00:04.4]} 69.
Rb4+ {[%clk 0:00:08.3]} 69... Kf5 {[%clk 0:00:03.7]} 70. Rb7 {[%clk 0:00:09.2]}
70... e4 {[%clk 0:00:03.1]} 71. Kf2 {[%clk 0:00:09.1]} 71... Kf4 {[%clk
0:00:02.7]} 72. Rf7+ {[%clk 0:00:08.4]} 72... Ke5 {[%clk 0:00:02.4]} 73. Rb7
{[%clk 0:00:08]} 73... Kd4 {[%clk 0:00:02.3]} 74. Kg2 {[%clk 0:00:08.9]} 74...
Rh6 {[%clk 0:00:01.9]} 75. Rxb3 {[%clk 0:00:08.1]} 75... Rxh7 {[%clk 0:00:01.1]}
76. Kf2 {[%clk 0:00:08.8]} 76... Rf7+ {[%clk 0:00:01.2]} 77. Ke2 {[%clk
0:00:09.4]} 77... Ke5 {[%clk 0:00:01.8]} 78. Ra3 {[%clk 0:00:10.3]} 78... Kf4
{[%clk 0:00:01.7]} 79. Ra5 {[%clk 0:00:11.2]} 79... Rc7 {[%clk 0:00:01.5]} 80.
Rh5 {[%clk 0:00:11.6]} 80... Rb7 {[%clk 0:00:02]} 81. Kd1 {[%clk 0:00:12.5]}
81... Ke3 {[%clk 0:00:01.9]} 82. Rh3+ {[%clk 0:00:12.9]} 82... Kd4 {[%clk
0:00:02.5]} 83. Ra3 {[%clk 0:00:13.6]} 83... Kd5 {[%clk 0:00:03]} 84. Ke2 {[%clk
0:00:14]} 84... Kd4 {[%clk 0:00:03.5]} 85. Ra4+ {[%clk 0:00:14.1]} 85... Ke5
{[%clk 0:00:03.3]} 86. Ra3 {[%clk 0:00:15]} 86... Rb4 {[%clk 0:00:03.2]} 87. Ke3
{[%clk 0:00:15.2]} 87... Rb5 {[%clk 0:00:03.6]} 88. Rc3 {[%clk 0:00:14.8]} 88...
Rd5 {[%clk 0:00:04.2]} 89. Ra3 {[%clk 0:00:14.8]} 89... Rd3+ {[%clk 0:00:04.8]}
90. Rxd3 {[%clk 0:00:14.9]} 90... exd3 {[%clk 0:00:04.9]} 91. Kxd3 {[%clk
0:00:15.8]} 1/2-1/2

[Event "*** SCC Grand Prix: Titled Tuesday Blitz"]
[Site "Chess.com"]
[Date "2020.07.21"]
[Round "5"]
[White "doons21"]
[Black "Zhani-Z"]
[Result "1-0"]
[WhiteElo "2637"]
[BlackElo "2420"]
[TimeControl "180+1"]
[EndTime "10:57:39 PDT"]
[Termination "doons21 won by resignation"]

1. e4 {[%clk 0:02:58.5]} 1... e5 {[%clk 0:02:59.7]} 2. Nf3 {[%clk 0:02:58.1]}
2... Nc6 {[%clk 0:03:00]} 3. Bb5 {[%clk 0:02:55.7]} 3... a6 {[%clk 0:03:00.4]}
4. Ba4 {[%clk 0:02:55.8]} 4... d6 {[%clk 0:03:00]} 5. O-O {[%clk 0:02:52.6]}
5... Bd7 {[%clk 0:02:59.3]} 6. c3 {[%clk 0:02:51.3]} 6... g6 {[%clk 0:02:58.9]}
7. Re1 {[%clk 0:02:42.2]} 7... Bg7 {[%clk 0:02:59]} 8. d4 {[%clk 0:02:37.6]}
8... Nf6 {[%clk 0:02:59.5]} 9. dxe5 {[%clk 0:02:32.2]} 9... Nxe5 {[%clk
0:02:43.3]} 10. Nxe5 {[%clk 0:02:31.2]} 10... dxe5 {[%clk 0:02:44.2]} 11. Bg5
{[%clk 0:02:22]} 11... Bxa4 {[%clk 0:02:35.6]} 12. Qxa4+ {[%clk 0:02:21.4]}
12... Qd7 {[%clk 0:02:35.9]} 13. Qc2 {[%clk 0:02:19.1]} 13... O-O {[%clk
0:02:33.6]} 14. Bxf6 {[%clk 0:02:18.6]} 14... Bxf6 {[%clk 0:02:32.8]} 15. Nd2
{[%clk 0:02:18.8]} 15... Rad8 {[%clk 0:02:25.9]} 16. Nf3 {[%clk 0:02:02.6]}
16... Qe6 {[%clk 0:02:20.7]} 17. Qb3 {[%clk 0:01:57.7]} 17... Qxb3 {[%clk
0:02:17]} 18. axb3 {[%clk 0:01:58.6]} 18... Rd7 {[%clk 0:02:02.1]} 19. Ra5
{[%clk 0:01:50.9]} 19... Re8 {[%clk 0:01:57.3]} 20. b4 {[%clk 0:01:39.4]} 20...
Bg7 {[%clk 0:01:57.2]} 21. Kf1 {[%clk 0:01:38.2]} 21... c6 {[%clk 0:01:47.2]}
22. g4 {[%clk 0:01:31.1]} 22... f6 {[%clk 0:01:43.2]} 23. Ke2 {[%clk 0:01:27.9]}
23... Bf8 {[%clk 0:01:32.6]} 24. g5 {[%clk 0:01:11.7]} 24... Kf7 {[%clk
0:01:32.1]} 25. gxf6 {[%clk 0:01:05.4]} 25... Kxf6 {[%clk 0:01:33]} 26. Rd1
{[%clk 0:01:03.2]} 26... Rxd1 {[%clk 0:01:32.2]} 27. Kxd1 {[%clk 0:01:04.1]}
27... Bd6 {[%clk 0:01:32.1]} 28. Ke2 {[%clk 0:01:02]} 28... Bc7 {[%clk
0:01:29.4]} 29. Ra1 {[%clk 0:01:01.6]} 29... Ke7 {[%clk 0:01:17.9]} 30. Nd2
{[%clk 0:00:52]} 30... Rf8 {[%clk 0:01:15]} 31. f3 {[%clk 0:00:45]} 31... Rf4
{[%clk 0:01:14.2]} 32. Rg1 {[%clk 0:00:45]} 32... Rh4 {[%clk 0:01:07.7]} 33. Rg2
{[%clk 0:00:45.2]} 33... Ke6 {[%clk 0:01:04.4]} 34. Nc4 {[%clk 0:00:42.4]} 34...
b5 {[%clk 0:00:54.9]} 35. Nd2 {[%clk 0:00:38.7]} 35... a5 {[%clk 0:00:52.6]} 36.
bxa5 {[%clk 0:00:25.3]} 36... Bxa5 {[%clk 0:00:53.5]} 37. b4 {[%clk 0:00:25.9]}
37... Bb6 {[%clk 0:00:53.7]} 38. Nf1 {[%clk 0:00:25]} 38... Rf4 {[%clk
0:00:49.5]} 39. Rg4 {[%clk 0:00:18.8]} 39... Rf8 {[%clk 0:00:48.2]} 40. h4
{[%clk 0:00:18.6]} 40... Ra8 {[%clk 0:00:47.1]} 41. h5 {[%clk 0:00:18.7]} 41...
Ra2+ {[%clk 0:00:45.6]} 42. Nd2 {[%clk 0:00:18.3]} 42... Kf6 {[%clk 0:00:31.2]}
43. hxg6 {[%clk 0:00:17.6]} 43... hxg6 {[%clk 0:00:31.6]} 44. Kd3 {[%clk
0:00:17]} 44... Ra1 {[%clk 0:00:28]} 45. Rh4 {[%clk 0:00:16.5]} 45... Re1 {[%clk
0:00:27]} 46. Rh8 {[%clk 0:00:15]} 46... Re3+ {[%clk 0:00:26.4]} 47. Kc2 {[%clk
0:00:15.4]} 47... Re2 {[%clk 0:00:27.3]} 48. Kd1 {[%clk 0:00:15.7]} 48... Rf2
{[%clk 0:00:27.7]} 49. Rc8 {[%clk 0:00:13]} 49... Be3 {[%clk 0:00:27.6]} 50.
Rxc6+ {[%clk 0:00:13.4]} 50... Kg5 {[%clk 0:00:28.1]} 51. Nb3 {[%clk 0:00:13.7]}
51... Rxf3 {[%clk 0:00:26.6]} 52. Ke2 {[%clk 0:00:14.1]} 52... Rh3 {[%clk
0:00:26.7]} 53. Re6 {[%clk 0:00:14]} 53... Bf4 {[%clk 0:00:26.7]} 54. Nc5 {[%clk
0:00:14.4]} 54... Rxc3 {[%clk 0:00:26.4]} 55. Nd3 {[%clk 0:00:14.8]} 55... Rc4
{[%clk 0:00:25.3]} 56. Kf3 {[%clk 0:00:13.3]} 56... Rc3 {[%clk 0:00:25.5]} 57.
Ke2 {[%clk 0:00:13.5]} 57... Rb3 {[%clk 0:00:23.7]} 58. Rb6 {[%clk 0:00:12.8]}
58... Rc3 {[%clk 0:00:17.4]} 59. Rxb5 {[%clk 0:00:12.5]} 59... Kf6 {[%clk
0:00:16.5]} 60. Rb6+ {[%clk 0:00:11.7]} 60... Kg5 {[%clk 0:00:16.3]} 61. Re6
{[%clk 0:00:10.7]} 61... Rc4 {[%clk 0:00:15.2]} 62. Kf3 {[%clk 0:00:11]} 62...
Rc3 {[%clk 0:00:15.6]} 63. Rd6 {[%clk 0:00:11.4]} 63... Kh5 {[%clk 0:00:12.4]}
64. Ke2 {[%clk 0:00:09.8]} 64... g5 {[%clk 0:00:12.4]} 65. Rd5 {[%clk
0:00:10.3]} 65... Rc4 {[%clk 0:00:10.5]} 66. Kf3 {[%clk 0:00:08.2]} 66... g4+
{[%clk 0:00:10.3]} 67. Ke2 {[%clk 0:00:07.7]} 67... Kh4 {[%clk 0:00:08.8]} 68.
b5 {[%clk 0:00:06.2]} 68... Rxe4+ {[%clk 0:00:08.7]} 69. Kf1 {[%clk 0:00:06.8]}
69... Rc4 {[%clk 0:00:06.7]} 70. b6 {[%clk 0:00:07]} 70... Rc3 {[%clk
0:00:04.6]} 71. Nb4 {[%clk 0:00:04.9]} 71... Rb3 {[%clk 0:00:04.2]} 72. Rb5
{[%clk 0:00:05.3]} 72... e4 {[%clk 0:00:03.9]} 73. b7 {[%clk 0:00:05.9]} 73...
e3 {[%clk 0:00:01.6]} 74. b8=Q {[%clk 0:00:06]} 74... Rb1+ {[%clk 0:00:02.5]}
75. Ke2 {[%clk 0:00:05.8]} 75... Bxb8 {[%clk 0:00:03.4]} 76. Rxb8 {[%clk
0:00:05.9]} 76... Rb3 {[%clk 0:00:04.1]} 77. Rh8+ {[%clk 0:00:04.7]} 77... Kg3
{[%clk 0:00:05]} 78. Nd3 {[%clk 0:00:05]} 78... Rb2+ {[%clk 0:00:05.7]} 79. Nxb2
{[%clk 0:00:03.7]} 79... Kf4 {[%clk 0:00:05.8]} 80. Rf8+ {[%clk 0:00:03.9]}
80... Kg3 {[%clk 0:00:05.9]} 81. Nd3 {[%clk 0:00:04.2]} 81... Kg2 {[%clk
0:00:05.1]} 82. Kxe3 {[%clk 0:00:03.8]} 82... g3 {[%clk 0:00:05]} 83. Rg8 {[%clk
0:00:04.7]} 1-0